Cogmind - Beta 14 @@@ ROGUE MODE // 2024.10.23 @ 04:30:25 Player: skkpq Result: Destroyed by Y-64 Sentinel with KE Penetrator Performance ------------- Evolutions (6) 3000 Regions Visited (21) 4200 Robots Destroyed (159) 795 Value Destroyed (6529) 6529 Prototype IDs (32) 640 Alien Tech Used (0) 0 Bonus (966) 966 TOTAL SCORE: 16130 Bonus ------- Follower Combat Kills 794 Aligned with FarCom 300 Friendly Fire -128 Cogmind --------- Core Integrity 0/1150 Matter 77/300 Energy 100/100 System Corruption 5% Temperature Cool (21) Movement Flying (195) Ox2 Location -4/Upper Caves Parts ------- > --- POWER (2) -------- (None) > --- PROPULSION (6) --- VTOL Module > --- UTILITY (8) ------ (None) > --- WEAPON (3) ------- Hardcell Cannon > --- INVENTORY (5) ---- Advanced Coolant Injector Matter Neutralizer Hardcell Cannon Peak State ------------ > --- POWER ------------ Micro Fission Core Antimatter Reactor > --- PROPULSION ------- Improved Treads Armored Medium Treads Heavy Treads Heavy Treads > --- UTILITY ---------- Advanced Coolant Injector High-capacity Storage Unit Improved Target Analyzer Advanced Target Analyzer Advanced Particle Charger Improved Medium Armor Plating Advanced Shield Generator Improved Force Field > --- WEAPON ----------- Improved Heavy Laser Wave Gun KE Penetrator > --- INVENTORY -------- Neutrino Core Light Antimatter Reactor Heavy Treads Heavy Siege Treads Heavy Siege Treads Advanced Heat Sink High-capacity Storage Unit Improved Heavy Armor Plating Improved Remote Shield Dynamic Insulation System Advanced Plasma Rifle Matter Neutralizer Hypervelocity Gauss Rifle Hardcell Cannon Hardcell Cannon Force Lance [Rating: 119] Favorites ----------- Power Antimatter Reactor Engine Deuterium Engine Power Core Micro Fission Core Reactor Antimatter Reactor Propulsion Heavy Treads Treads Heavy Treads Leg Aluminum Leg Wheel Wheel Hover Unit Linear Gravjet Flight Unit VTOL Module Utility Core Analyzer Device Improved Cooling System Storage Medium Storage Unit Processor Core Analyzer Hackware Hacking Suite Protection Hardened Medium Armor Plating Weapon Slug Cannon Energy Gun Heavy Laser Energy Cannon Advanced Plasma Cannon Ballistic Gun KE Penetrator Ballistic Cannon Slug Cannon Launcher Long-range Missile Launcher Impact Weapon Heavy Mace Slashing Weapon Power Sword Piercing Weapon Force Lance Build | -11 -10 -9 -9 -9 -8 -8 -7 -7 -7 -7 -7 -6 -6 -6 -5 -5 -5 -4 -4 -4 -4 ------- Run | Yrd Mat Mat Min Exi Min Mat Fac Was Fac Low Low Fac Low Low Fac Upp Upp Fac Was Fac Upp Slots Evolved 12 | . . 2 . . . 2 2 . . . . 2 . . 2 . . 2 . . . Power 1 | . . . . . . . . . . . . . . . 1 . . . . . . Propulsion 4 | . . 1 . . . 1 . . . . . 1 . . . . . 1 . . . Utility 6 | . . 1 . . . 1 2 . . . . . . . 1 . . 1 . . . Weapon 1 | . . . . . . . . . . . . 1 . . . . . . . . . Parts Attached 222 | 6 9 15 . 4 . 29 23 9 2 1 . 8 8 3 24 1 19 30 3 26 2 Power 36 | 1 2 2 . 1 . 5 3 1 . . . 3 1 1 3 . 2 6 1 4 . Engine 16 | 1 2 2 . 1 . 2 3 . . . . . . 1 2 . 1 1 . . . Core 13 | . . . . . . 3 . . . . . . 1 . 1 . 1 4 . 3 . Reactor 7 | . . . . . . . . 1 . . . 3 . . . . . 1 1 1 . Propulsion 67 | 2 2 5 . 1 . 12 8 3 . . . 1 2 . 8 . 7 7 1 7 1 Treads 18 | . . . . . . . . 2 . . . . 1 . . . 3 4 1 7 . Leg 37 | 2 2 5 . 1 . 12 8 . . . . 1 1 . 2 . 3 . . . . Wheel 6 | . . . . . . . . . . . . . . . 3 . 1 2 . . . Hover 5 | . . . . . . . . 1 . . . . . . 3 . . 1 . . . Flight 1 | . . . . . . . . . . . . . . . . . . . . . 1 Utility 67 | 1 2 4 . 2 . 8 7 3 2 1 . 1 1 1 8 1 5 11 . 9 . Device 30 | . . 2 . . . 1 4 2 . . . . 1 1 5 . 3 7 . 4 . Storage 13 | 1 2 . . 2 . 3 . . 1 . . . . . 1 . 1 2 . . . Processor 7 | . . 1 . . . 1 2 . . . . . . . . . . 1 . 2 . Hackware 3 | . . . . . . 1 1 . . . . . . . . 1 . . . . . Protection 14 | . . 1 . . . 2 . 1 1 1 . 1 . . 2 . 1 1 . 3 . Artifact . | . . . . . . . . . . . . . . . . . . . . . . Weapon 52 | 2 3 4 . . . 4 5 2 . . . 3 4 1 5 . 5 6 1 6 1 Energy Gun 9 | . 1 1 . . . . . . . . . . . . . . 3 4 . . . Energy Cannon 6 | . . . . . . . . . . . . . 2 1 2 . . . . 1 . Ballistic Gun 18 | 2 . 3 . . . 3 1 . . . . 1 1 . 3 . 1 1 1 1 . Ballistic Cannon 8 | . . . . . . . 2 2 . . . . . . . . . . . 3 1 Launcher 3 | . . . . . . . . . . . . 2 . . . . . 1 . . . Special Weapon . | . . . . . . . . . . . . . . . . . . . . . . Impact Weapon 6 | . 2 . . . . 1 2 . . . . . 1 . . . . . . . . Slashing Weapon 1 | . . . . . . . . . . . . . . . . . 1 . . . . Piercing Weapon 1 | . . . . . . . . . . . . . . . . . . . . 1 . Special Melee Weapon . | . . . . . . . . . . . . . . . . . . . . . . Unidentified Prototypes 6 | . . . . . . 1 2 . . . . 1 . . 1 . . 1 . . . Corrupted Parts 1 | . . . . . . . . . . . . . . . 1 . . . . . . System Corruption 4 | . . . . . . . . . . . . . . . 4 . . . . . . Parts Lost 90 | . 4 2 . . . 7 17 . . . . . 2 5 2 2 19 1 1 27 1 Power 13 | . 1 . . . . 1 2 . . . . . . 1 . . 3 . . 5 . Propulsion 33 | . 2 1 . . . 3 8 . . . . . 1 2 . 1 7 . . 8 . Utility 28 | . . 1 . . . 2 6 . . . . . . 1 2 1 4 1 . 9 1 Weapon 16 | . 1 . . . . 1 1 . . . . . 1 1 . . 5 . 1 5 . Highest Loss Streak 15 | . 4 2 . . . 4 6 . . . . . 2 5 2 2 13 1 1 15 1 To Critical Strikes 3 | . . . . . . . . . . . . . . 1 . . 1 . . 1 . Average Slot Usage (%) 85 | . 94 96 100 99 100 98 81 84 84 84 84 85 85 72 70 93 67 94 91 77 5 Engine 3 | . 12 11 11 11 11 2 5 1 . . . . . 5 6 5 4 1 . . . Core 1 | . . . . . . 6 . . . . . . . . . 5 2 5 6 4 . Reactor 2 | . . . . . . . . 5 7 7 7 6 5 . . . . 2 3 3 . Treads 7 | . . . . . . . . 11 15 15 15 13 13 . . . 3 23 23 17 . Leg 12 | . 26 32 33 33 33 35 22 1 . . . 6 5 6 7 . 7 . . . . Hover 1 | . . . . . . . . 3 . . . . . . . 17 3 1 . . . Device 10 | . . 9 11 11 11 6 11 10 7 7 7 6 6 11 16 11 13 18 21 16 . Storage 6 | . 26 6 . 9 11 10 7 7 7 7 7 6 6 6 1 4 2 6 5 4 . Processor 8 | . . 10 11 1 . 5 4 15 15 15 15 13 13 13 9 5 5 10 10 10 . Hackware 3 | . . . . . . 8 9 7 7 7 7 4 . . . 4 1 . . . . Protection 5 | . . 4 11 11 11 4 1 2 6 7 7 7 13 6 5 5 1 5 5 4 . Energy Gun 2 | . 2 5 . . . . . . . . . . . . . . 7 8 10 4 . Energy Cannon 1 | . . . . . . . . . . . . . 1 12 5 5 1 . . 1 . Ballistic Gun 6 | . 16 10 22 22 22 11 . . . . . . 6 . 10 11 2 3 5 3 . Ballistic Cannon 4 | . . . . . . . 6 7 15 15 15 12 6 6 . . . . . 1 3 Impact Weapon 1 | . 7 5 . . . 6 6 5 . . . . . . . . . . . . . Peak Build Rating 119 | 6 8 17 15 22 23 44 58 61 59 60 60 69 70 68 87 87 83 110 115 119 11 Average Rating 57 | 3 6 15 15 15 22 33 44 54 58 58 60 67 68 44 63 84 56 97 111 101 7 On Entrance 46 | . 6 8 15 15 22 23 43 22 59 58 60 60 69 68 43 87 83 54 108 115 7 Naked Turns 14 | . . . . . . . . . . . . . . . . . . . . 8 6 Heaviest Build 112 | 13 16 22 19 22 22 28 33 50 50 50 46 62 60 56 69 61 59 112 106 110 10 Greatest Support 210 | 20 20 36 30 50 50 82 90 140 140 140 140 140 168 140 35 27 83 180 190 210 3 Greatest Overweight (x) 9 | . 2 . . . . 1 9 2 . . . . 2 2 6 3 5 5 . 1 3 Average Overweight (x) . | . . . . . . . . . . . . . . 1 2 2 1 1 . . . Largest Inventory Capacity 20 | 8 8 8 5 8 8 10 10 10 10 10 10 10 10 10 10 5 5 20 20 20 5 Average Capacity 9 | 6 8 5 5 5 8 8 10 10 10 10 10 10 10 10 5 5 5 14 20 19 5 Most Carried 20 | 6 8 8 5 7 8 8 10 10 10 10 10 10 10 10 9 5 5 20 20 20 4 Average Carried 8 | 4 7 5 5 5 7 7 8 9 9 9 10 9 9 7 5 5 3 13 19 15 3 Final Capacity 20 | 8 8 5 5 8 8 10 10 10 10 10 10 10 10 10 5 5 5 20 20 5 5 Final Carried 20 | 6 8 5 5 7 8 8 7 10 10 10 10 10 10 7 5 5 3 20 20 4 3 Class Distribution -------------------- 33% | Scavenger-Mutant 31% | Scavenger-Gunner 21% | Mutant 4% | Commander-Gunner 4% | Gunner 3% | Hacker-Mutant Dominant Class ---------------- Mutant | -10/Materials Mutant | -9/Materials Mutant | -9/Mines Mutant | -9/Exiles Scavenger-Mutant | -8/Mines Scavenger-Mutant | -8/Materials Mutant | -7/Factory Scavenger-Mutant | -7/Waste Scavenger-Mutant | -7/Factory Scavenger-Mutant | -7/Lower Caves Scavenger-Mutant | -7/Lower Caves Scavenger-Gunner | -6/Factory Scavenger-Gunner | -6/Lower Caves Gunner | -6/Lower Caves Commander-Gunner | -5/Factory Scavenger-Gunner | -5/Upper Caves Scavenger-Mutant | -5/Upper Caves Scavenger-Gunner | -4/Factory Scavenger-Gunner | -4/Waste Scavenger-Gunner | -4/Factory Scavenger-Gunner | -4/Upper Caves Resources | -11 -10 -9 -9 -9 -8 -8 -7 -7 -7 -7 -7 -6 -6 -6 -5 -5 -5 -4 -4 -4 -4 ----------- Run | Yrd Mat Mat Min Exi Min Mat Fac Was Fac Low Low Fac Low Low Fac Upp Upp Fac Was Fac Upp Matter Collected 4731 | 173 290 250 20 100 50 523 315 144 65 89 . 68 617 145 404 90 296 417 154 521 . Remotely 38 | . . . . . . . . . . . . . . . . . 15 23 . . . Salvage Created 7972 | . 360 343 20 . 50 1127 877 . . . . 22 620 190 490 90 528 523 1833 843 56 Parts 289 | . 12 14 4 . 8 44 26 . . . . . 20 6 23 3 27 37 22 40 3 Haulers Intercepted 1 | . . . . . . 1 . . . . . . . . . . . . . . . Recyclers Shooed 3 | . . . . . . 1 . . . . . 1 . . 1 . . . . . . Parts Field Recycled . | . . . . . . . . . . . . . . . . . . . . . . Retrieved Matter . | . . . . . . . . . . . . . . . . . . . . . . Parts Self-Destructed 54 | . . . . . . . . . . . . . 25 6 . 3 19 . . . 1 Prevented . | . . . . . . . . . . . . . . . . . . . . . . Kills | -11 -10 -9 -9 -9 -8 -8 -7 -7 -7 -7 -7 -6 -6 -6 -5 -5 -5 -4 -4 -4 -4 ------- Run | Yrd Mat Mat Min Exi Min Mat Fac Was Fac Low Low Fac Low Low Fac Upp Upp Fac Was Fac Upp Combat Hostiles Destroyed 137 | . 10 8 2 . 4 22 18 . . . . 1 20 4 6 1 8 7 6 17 3 Melee 24 | . 4 2 . . . 6 6 . . . . . . . . . 5 . . 1 . Guns 58 | . 4 5 2 . 4 10 . . . . . . 3 . 2 1 2 7 6 12 . Cannons 28 | . . . . . . . 2 . . . . 1 10 4 3 . 1 . . 4 3 AOE 9 | . . . . . . . 2 . . . . . 7 . . . . . . . . Classes Destroyed 17 | . 2 1 . . . 7 3 . . . . . 1 1 . . 1 . 1 . . Worker 9 | . . . . . . 3 4 . . . . . . . 1 . . 1 . . . Builder 2 | . . . . . . . 1 . . . . . . . . . . . . 1 . Tunneler 1 | . . . . . . 1 . . . . . . . . . . . . . . . Hauler 1 | . . . . . . 1 . . . . . . . . . . . . . . . Recycler 4 | . . . . . . 2 1 . . . . . . . 1 . . . . . . Watcher 5 | . . . . . . 3 . . . . . . . . . . . 1 . 1 . Swarmer 31 | . 1 . 2 . 4 6 . . . . . . 6 . . . . . . 9 3 Grunt 47 | . 9 4 . . . 8 5 . . . . . 11 . 2 . 6 . . 2 . Brawler 1 | . . . . . . . . . . . . . 1 . . . . . . . . Duelist 2 | . . . . . . 1 1 . . . . . . . . . . . . . . Sentry 27 | . . 4 . . . 5 5 . . . . 1 2 1 . 1 1 4 . 3 . Specialist 2 | . . . . . . 2 . . . . . . . . . . . . . . . Hunter 7 | . . . . . . . 4 . . . . . . 2 . . . . . 1 . Programmer 12 | . . . . . . . 3 . . . . . . . 4 . . 3 . 2 . Behemoth 1 | . . . . . . . . . . . . . . . . . 1 . . . . Compactor 6 | . . . . . . . . . . . . . . . . . . . 6 . . Mutant 1 | . . . . . . . . . . . . . . 1 . . . . . . . Best Kill Streak 7 | . 2 2 1 . 4 7 7 . . . . 1 7 3 5 1 2 3 2 4 3 Combat Bots Only 7 | . 2 2 1 . 4 5 3 . . . . 1 7 3 3 1 2 3 2 4 3 Max Kills in Single Turn 2 | . 1 1 1 . 1 1 2 . . . . 1 2 1 1 1 1 1 1 2 1 Gunslinging . | . . . . . . . . . . . . . . . . . . . . . . Exploded 2 | . . . . . . . 1 . . . . . 2 . . . . . . . . Melee 1 | . 1 1 . . . 1 1 . . . . . . . . . 1 . . 1 . Uniques/NPCs Destroyed . | . . . . . . . . . . . . . . . . . . . . . . Combat | -11 -10 -9 -9 -9 -8 -8 -7 -7 -7 -7 -7 -6 -6 -6 -5 -5 -5 -4 -4 -4 -4 -------- Run | Yrd Mat Mat Min Exi Min Mat Fac Was Fac Low Low Fac Low Low Fac Upp Upp Fac Was Fac Upp Hostile Shots Fired 1799 | . 95 62 21 . 20 149 430 . 2 . . 18 98 78 68 10 205 72 2 443 26 Missed 550 | . 24 12 10 . 4 34 178 . 1 . . 11 31 20 15 3 69 20 1 113 4 Damage Taken 19770 | . 863 647 85 . 127 1566 2867 . 118 . . 113 1266 866 1054 167 2710 776 19 6132 394 Core 3367 | . 183 155 7 . . 206 555 . . . . . 82 49 181 25 752 58 . 903 211 Absorbed by Shields 887 | . . . . . . . . . . . . . . 26 . . 128 354 19 360 . Ignored by Resistances 64 | . . . . . . . . . . . . . . . . . . 64 . . . Regen/Repaired (Parts) 678 | . . . . . . . . 380 44 . . 40 214 . . . . . . . . Core Remaining (%) 50 | 100 26 . . . 59 62 . . . . 20 . . 84 . . 4 . . . . Volleys Fired 339 | . 27 14 8 . 6 33 13 . 2 . . 6 29 16 21 5 21 22 32 76 8 Largest 3 | . 2 2 2 . 2 2 1 . 2 . . 2 3 3 3 3 3 3 3 3 1 Hottest 208 | . 40 46 46 . 46 46 48 . 96 . . 96 158 208 164 164 164 183 179 195 65 Shots Fired 731 | . 54 28 16 . 12 61 15 . 4 3 . 10 80 47 60 16 46 55 87 129 8 Gun 523 | . 54 28 16 . 12 61 . . . . . . 28 11 40 11 36 54 87 85 . Cannon 193 | . . . . . . . 15 . 4 3 . 8 40 36 20 5 10 . . 44 8 Launcher 15 | . . . . . . . . . . . . 2 12 . . . . 1 . . . Special . | . . . . . . . . . . . . . . . . . . . . . . Kinetic 531 | . 54 28 16 . 12 61 15 . 4 3 . 8 56 27 40 11 34 22 31 101 8 Thermal 172 | . . . . . . . . . . . . . 6 20 20 5 12 32 56 21 . Explosive 15 | . . . . . . . . . . . . 2 12 . . . . 1 . . . Electromagnetic 13 | . . . . . . . . . . . . . 6 . . . . . . 7 . Robot Hit Streak 20 | . 5 6 4 . 2 9 6 . 1 1 . 2 10 6 8 7 6 7 12 19 20 Robot Miss Streak 10 | . 4 4 5 . 10 5 1 . 2 2 . 5 4 2 3 1 3 3 2 8 2 Penetration Max 1 | . . . . . . . . . . . . . 1 . 1 . 1 . . 1 . Secondary Targets 7 | . . . . . . 3 . . . . . . . . . . 1 1 1 1 . Max Gunslinging Chain 1 | . . . . . . 1 . . . . . . . . . . 1 1 1 1 . Shots Hit Robots 629 | . 56 46 11 . 4 86 79 . 1 1 . 3 42 30 27 12 38 35 66 86 6 Core Hits 231 | . 11 11 2 . 4 32 13 . . 1 . 1 36 11 12 3 17 22 18 34 3 Critical Kills 18 | . 1 3 . . . 5 1 . . . . . 2 1 2 . . 2 . 1 . Critical Parts Destroyed 25 | . 3 1 . . . 4 8 . . . . 1 2 . 1 . 1 . . 4 . Critical Strikes 68 | . 4 5 . . . 9 9 . . . . 1 4 1 3 . 3 4 8 17 . Burn 10 | . . . . . . . . . . . . . . . . . . 2 6 2 . Meltdown 1 | . . . . . . . . . . . . . . . 1 . . . . . . Destroy 22 | . . 3 . . . 1 . . . . . 1 4 1 2 . 1 2 2 5 . Blast 6 | . . . . . . . . . . . . . . . . . . . . 6 . Smash 23 | . 4 2 . . . 8 9 . . . . . . . . . . . . . . Sever 2 | . . . . . . . . . . . . . . . . . 2 . . . . Impale 4 | . . . . . . . . . . . . . . . . . . . . 4 . Melee Attacks 224 | . 33 31 . . . 45 84 . . . . . . . . . 19 1 . 11 . Impact 193 | . 33 31 . . . 45 84 . . . . . . . . . . . . . . Slashing 20 | . . . . . . . . . . . . . . . . . 19 1 . . . Piercing 11 | . . . . . . . . . . . . . . . . . . . . 11 . Sneak Attacks 15 | . . . . . . 8 6 . . . . . . . . . . 1 . . . Combat Hostiles 2 | . . . . . . 1 1 . . . . . . . . . . . . . . Follow-up Attacks . | . . . . . . . . . . . . . . . . . . . . . . Damage Inflicted 20039 | . 1042 790 123 . 75 2420 3638 . 21 29 . 60 2448 706 1060 304 1290 1017 2079 2718 219 Guns 7569 | . 306 289 123 . 75 776 . . . . . . 358 101 572 176 471 884 2079 1359 . Cannons 3805 | . . . . . . . 287 . 21 29 . 47 738 605 488 128 236 16 . 991 219 Explosions 1622 | . . . . . . . 257 . . . . . 1352 . . . . 13 . . . Melee 7003 | . 730 494 . . . 1644 3094 . . . . . . . . . 583 90 . 368 . Ramming 40 | . 6 7 . . . . . . . . . 13 . . . . . 14 . . . Kinetic 7455 | . 306 289 123 . 75 776 287 . 21 29 . 47 898 294 572 176 471 315 636 1921 219 Thermal 4026 | . . . . . . . 257 . . . . . 102 412 488 128 236 569 1443 391 . Explosive 1365 | . . . . . . . . . . . . . 1352 . . . . 13 . . . Electromagnetic 134 | . . . . . . . . . . . . . 96 . . . . . . 38 . Impact 5978 | . 730 494 . . . 1644 3094 . . . . . . . . . . 16 . . . Slashing 673 | . . . . . . . . . . . . . . . . . 583 90 . . . Piercing 368 | . . . . . . . . . . . . . . . . . . . . 368 . Highest Corruption 10 | . . . . . . . 7 7 8 8 8 . . . 10 10 10 1 1 5 5 Average Corruption 6 | . . . . . . . 5 7 7 8 8 . . . 7 10 10 1 1 2 5 Corruption Purged 1 | . . . . . . . . . . . . . . . 1 . . . . . . Corruption Blocked . | . . . . . . . . . . . . . . . . . . . . . . Effects 159 | . . . . . . . 27 15 12 24 2 . . . 10 17 38 2 2 10 . Message Errors 34 | . . . . . . . 5 4 2 3 1 . . . 2 5 8 . 2 2 . Matter Fused 38 | . . . . . . . 7 4 3 9 . . . . 3 5 7 . . . . Heat Flow Errors 23 | . . . . . . . 1 2 4 5 1 . . . 1 2 6 1 . . . Energy Discharges 20 | . . . . . . . 4 2 . 3 . . . . 2 3 3 . . 3 . Parts Rejected 2 | . . . . . . . 1 . . . . . . . . . 1 . . . . Parts Fused 4 | . . . . . . . . . . . . . . . . 1 3 . . . . Data Loss (minor) 16 | . . . . . . . 4 2 1 1 . . . . . . 4 1 . 3 . Data Loss (major) 5 | . . . . . . . 1 . 1 . . . . . . . 2 . . 1 . Misfires 9 | . . . . . . . 2 . . 3 . . . . . 1 2 . . 1 . Alerts 4 | . . . . . . . 2 1 1 . . . . . . . . . . . . Weapon Failures 4 | . . . . . . . . . . . . . . . 2 . 2 . . . . Overload Shots . | . . . . . . . . . . . . . . . . . . . . . . Overflow Damage 1733 | . 76 60 . . . 539 912 . . . . . 62 . 4 . . . . 80 . Projectiles 67 | . . . . . . . 1 . . . . . 13 . 4 . . . . 49 . Explosions 51 | . . . . . . . 2 . . . . . 49 . . . . . . . . Melee 1615 | . 76 60 . . . 539 909 . . . . . . . . . . . . 31 . Knockbacks 39 | . 2 . . . . 7 14 . 1 1 . 1 2 3 . . . . . 8 . Impact 20 | . 2 . . . . 6 11 . . . . 1 . . . . . . . . . Kinetic 16 | . . . . . . . 2 . 1 1 . . 2 3 . . . . . 7 . Secondary 3 | . . . . . . 1 1 . . . . . . . . . . . . 1 . Self-Inflicted Damage 279 | . . . . . . . 191 . . . . . 88 . . . . . . . . Shots 4 | . . . . . . . 2 . . . . . 2 . . . . . . . . Rammed 2 | . . . . . . . . . . . . 1 . . . . . 1 . . . Targets Rammed 5 | . 1 2 . . . . . . . . . 1 . . . . . 1 . . . Kicked 3 | . 1 2 . . . . . . . . . . . . . . . . . . . Crushed . | . . . . . . . . . . . . . . . . . . . . . . Highest Temperature 952 | . 12 7 . . . 20 234 194 196 164 158 290 216 199 395 152 198 194 198 952 21 Average Temperature 130 | . 6 3 . . . 9 67 93 81 84 93 153 93 126 128 78 102 98 123 212 15 Received Heat Transfer 3796 | . 375 279 . . . 576 540 . . . . 24 424 54 45 27 922 92 . 399 39 Effects 31 | . . . . . . . . . . . . . . . . . . . . 31 . Shutdowns 8 | . . . . . . . . . . . . . . . . . . . . 8 . Energy Bleed 4 | . . . . . . . . . . . . . . . . . . . . 4 . Interference 6 | . . . . . . . . . . . . . . . . . . . . 6 . Matter Decay 2 | . . . . . . . . . . . . . . . . . . . . 2 . Short Circuit 2 | . . . . . . . . . . . . . . . . . . . . 2 . Damage (minor) 3 | . . . . . . . . . . . . . . . . . . . . 3 . Damage (major) 4 | . . . . . . . . . . . . . . . . . . . . 4 . Damage (core) 2 | . . . . . . . . . . . . . . . . . . . . 2 . Siege Activations . | . . . . . . . . . . . . . . . . . . . . . . Robots Corrupted 20 | . 2 1 . . . 8 9 . . . . . . . . . . . . . . Combat Hostiles 17 | . 2 1 . . . 6 8 . . . . . . . . . . . . . . Parts Fried 41 | . 3 1 . . . 20 17 . . . . . . . . . . . . . . Impact Corruptions 70 | . 7 3 . . . 20 40 . . . . . . . . . . . . . . Robots Melted 1 | . . . . . . . . . . . . . . . 1 . . . . . . Combat Hostiles 1 | . . . . . . . . . . . . . . . 1 . . . . . . Parts Melted 16 | . . . . . . . . . . . . . 1 2 7 2 . 2 1 1 . Heat Transferred 6013 | . . . . . . . 150 . . . . . 200 800 650 200 350 888 2183 592 . Parts Sabotaged . | . . . . . . . . . . . . . . . . . . . . . . Parts Stolen . | . . . . . . . . . . . . . . . . . . . . . . Parts Stripped . | . . . . . . . . . . . . . . . . . . . . . . Power Chain Reactions . | . . . . . . . . . . . . . . . . . . . . . . Alert | -11 -10 -9 -9 -9 -8 -8 -7 -7 -7 -7 -7 -6 -6 -6 -5 -5 -5 -4 -4 -4 -4 ------- Run | Yrd Mat Mat Min Exi Min Mat Fac Was Fac Low Low Fac Low Low Fac Upp Upp Fac Was Fac Upp Peak Influence 572 | . 295 175 167 . 120 301 374 130 572 . . 53 . . 175 . . 178 58 304 . Initial 130 | . . 50 67 . . 46 88 130 . . . . . . 81 . . 18 44 33 . Average 114 | . 118 93 125 . 105 150 182 89 213 . . 21 . . 64 . . 67 47 126 . Maximum Alert Level 2 | . 1 . . . . 1 1 . 2 . . . . . . . . . . 1 . Low Security (%) 84 | 100 77 100 100 . 100 70 68 100 44 . . 100 . . 100 . . 100 100 80 . Level 1 14 | . 22 . . . . 29 31 . 32 . . . . . . . . . . 19 . Level 2 1 | . . . . . . . . . 23 . . . . . . . . . . . . Level 3 . | . . . . . . . . . . . . . . . . . . . . . . Level 4 . | . . . . . . . . . . . . . . . . . . . . . . Level 5 . | . . . . . . . . . . . . . . . . . . . . . . High Security . | . . . . . . . . . . . . . . . . . . . . . . Max Security . | . . . . . . . . . . . . . . . . . . . . . . Squads Dispatched 33 | . 3 1 . . . 3 9 . 4 . . 1 . . 2 . . 4 . 6 . Investigation 9 | . 1 . . . . 2 3 . 2 . . . . . . . . . . 1 . Extermination 6 | . . . . . . . 1 . . . . 1 . . 1 . . 2 . 1 . Reinforcement 10 | . 2 1 . . . 1 2 . 2 . . . . . 1 . . . . 1 . Assault 1 | . . . . . . . . . . . . . . . . . . 1 . . . Garrison 7 | . . . . . . . 3 . . . . . . . . . . 1 . 3 . Intercept . | . . . . . . . . . . . . . . . . . . . . . . Searches Triggered . | . . . . . . . . . . . . . . . . . . . . . . Construction Impeded 2 | . . . . . . . . . 1 . . . . . . . . . . 1 . Haulers Reinforced 1 | . . . . . . . . . 1 . . . . . . . . . . . . Active Scanning Responses . | . . . . . . . . . . . . . . . . . . . . . . Cargo Convoy Interrupts 1 | . . . . . . . . . . . . . . . . . . . . 1 . Stealth | -11 -10 -9 -9 -9 -8 -8 -7 -7 -7 -7 -7 -6 -6 -6 -5 -5 -5 -4 -4 -4 -4 --------- Run | Yrd Mat Mat Min Exi Min Mat Fac Was Fac Low Low Fac Low Low Fac Upp Upp Fac Was Fac Upp Distress Signals 14 | . 2 . . . . 4 4 . 1 . . . . . 1 . . . . 2 . Communications Jammed . | . . . . . . . . . . . . . . . . . . . . . . Distress Signals . | . . . . . . . . . . . . . . . . . . . . . . Times Spotted 247 | . 23 18 5 . 4 34 31 . 14 . . 3 24 4 11 1 12 11 6 41 5 Peak Tracking Total 14 | . 5 5 3 . 6 6 9 . 3 . . 1 10 2 4 1 7 4 2 14 5 Tactical Retreats 21 | . 3 . 2 . 1 3 4 . 1 . . . . . . . 3 . . 4 . Traps | -11 -10 -9 -9 -9 -8 -8 -7 -7 -7 -7 -7 -6 -6 -6 -5 -5 -5 -4 -4 -4 -4 ------- Run | Yrd Mat Mat Min Exi Min Mat Fac Was Fac Low Low Fac Low Low Fac Upp Upp Fac Was Fac Upp Traps Triggered 10 | . 1 . . . . . 3 . 1 . . 2 . . . . . 3 . . . Indirectly . | . . . . . . . . . . . . . . . . . . . . . . Trap Hack Attempts . | . . . . . . . . . . . . . . . . . . . . . . Triggered . | . . . . . . . . . . . . . . . . . . . . . . Disarmed . | . . . . . . . . . . . . . . . . . . . . . . Reprogrammed 12 | . . 6 . . . . 6 . . . . . . . . . . . . . . Reused . | . . . . . . . . . . . . . . . . . . . . . . Traps Extracted . | . . . . . . . . . . . . . . . . . . . . . . Installed . | . . . . . . . . . . . . . . . . . . . . . . Triggered 1 | . . . . . . . 1 . . . . . . . . . . . . . . Machines | -11 -10 -9 -9 -9 -8 -8 -7 -7 -7 -7 -7 -6 -6 -6 -5 -5 -5 -4 -4 -4 -4 ---------- Run | Yrd Mat Mat Min Exi Min Mat Fac Was Fac Low Low Fac Low Low Fac Upp Upp Fac Was Fac Upp Machines Disabled 21 | . . . . . . . 5 . 2 . . 1 4 1 2 . . . . 6 . Max in Single Turn 4 | . . . . . . . 4 . 1 . . . 2 1 1 . . . . 2 . Garrison Access 2 | . . . . . . 1 . . . . . . . . . . . 1 . . . Machines Repaired . | . . . . . . . . . . . . . . . . . . . . . . Machines Dismantled . | . . . . . . . . . . . . . . . . . . . . . . Machines Sabotaged . | . . . . . . . . . . . . . . . . . . . . . . Overloaded Fab Kills . | . . . . . . . . . . . . . . . . . . . . . . Hacking | -11 -10 -9 -9 -9 -8 -8 -7 -7 -7 -7 -7 -6 -6 -6 -5 -5 -5 -4 -4 -4 -4 --------- Run | Yrd Mat Mat Min Exi Min Mat Fac Was Fac Low Low Fac Low Low Fac Upp Upp Fac Was Fac Upp Machines Accessed 37 | . 1 4 . 5 . 10 4 . 4 1 . 1 3 . 2 . . 1 . 1 . Terminals 21 | . 1 4 . . . 5 3 . 3 . . 1 1 . 1 . . 1 . 1 . Fabricators 2 | . . . . . . . 1 . 1 . . . . . . . . . . . . Repair Stations 1 | . . . . . . . . . . . . . . . 1 . . . . . . Recycling Units 2 | . . . . . . 2 . . . . . . . . . . . . . . . Scanalyzers 2 | . . . . . . 2 . . . . . . . . . . . . . . . Garrison Access 1 | . . . . . . 1 . . . . . . . . . . . . . . . Total Hacks 151 | . 3 13 . 50 . 39 13 . 10 1 . 2 11 . 4 . . 1 . 4 . Successful 108 | . . 7 . 50 . 26 6 . 4 1 . 1 11 . 1 . . . . 1 . Failed 43 | . 3 6 . . . 13 7 . 6 . . 1 . . 3 . . 1 . 3 . Catastrophic 10 | . 1 2 . . . 3 2 . . . . 1 . . . . . . . 1 . Database Lockouts . | . . . . . . . . . . . . . . . . . . . . . . Manual 48 | . 3 11 . 1 . 15 6 . 3 . . 1 2 . 2 . . . . 4 . Terminals 66 | . 3 13 . . . 20 8 . 8 . . 2 5 . 2 . . 1 . 4 . Fabricators 7 | . . . . . . . 5 . 2 . . . . . . . . . . . . Repair Stations 2 | . . . . . . . . . . . . . . . 2 . . . . . . Recycling Units 2 | . . . . . . 2 . . . . . . . . . . . . . . . Scanalyzers 15 | . . . . . . 15 . . . . . . . . . . . . . . . Garrison Access 2 | . . . . . . 2 . . . . . . . . . . . . . . . Terminal Hacks 84 | . . 7 . 50 . 7 4 . 2 1 . 1 11 . . . . . . 1 . Record 61 | . . . . 49 . . . . 1 . . 1 10 . . . . . . . . Prototype ID Bank 1 | . . . . . . . 1 . . . . . . . . . . . . . . Open Door 2 | . . . . . . . . . . 1 . . 1 . . . . . . . . Branch Access Points 1 | . . 1 . . . . . . . . . . . . . . . . . . . Emergency Access Points 3 | . . 1 . . . 2 . . . . . . . . . . . . . . . Alert Level 3 | . . 1 . . . 2 . . . . . . . . . . . . . . . Unreport Threat 1 | . . . . . . 1 . . . . . . . . . . . . . . . Locate Traps 5 | . . 2 . . . 1 1 . 1 . . . . . . . . . . . . Reprogram Traps 2 | . . 1 . . . . 1 . . . . . . . . . . . . . . Zone Layout 4 | . . 1 . . . 1 1 . . . . . . . . . . . . 1 . Derelict Proto ID Bank 1 | . . . . 1 . . . . . . . . . . . . . . . . . Fabricator Hacks 4 | . . . . . . . 2 . 2 . . . . . . . . . . . . Load Schematic 2 | . . . . . . . 1 . 1 . . . . . . . . . . . . Build 2 | . . . . . . . 1 . 1 . . . . . . . . . . . . Repair Station Hacks 1 | . . . . . . . . . . . . . . . 1 . . . . . . Scan Component 1 | . . . . . . . . . . . . . . . 1 . . . . . . Recycling Unit Hacks 2 | . . . . . . 2 . . . . . . . . . . . . . . . Report Inventory 2 | . . . . . . 2 . . . . . . . . . . . . . . . Scanalyzer 15 | . . . . . . 15 . . . . . . . . . . . . . . . Insert Component 8 | . . . . . . 8 . . . . . . . . . . . . . . . Analyze 7 | . . . . . . 7 . . . . . . . . . . . . . . . Garrison Access Hacks 1 | . . . . . . 1 . . . . . . . . . . . . . . . Seal Access 1 | . . . . . . 1 . . . . . . . . . . . . . . . Unauthorized Hacks 1 | . . . . . . 1 . . . . . . . . . . . . . . . Terminals 1 | . . . . . . 1 . . . . . . . . . . . . . . . Assimilate 1 | . . . . . . 1 . . . . . . . . . . . . . . . Fabricators . | . . . . . . . . . . . . . . . . . . . . . . Repair Stations . | . . . . . . . . . . . . . . . . . . . . . . Recycling Units . | . . . . . . . . . . . . . . . . . . . . . . Scanalyzers . | . . . . . . . . . . . . . . . . . . . . . . Garrison Access . | . . . . . . . . . . . . . . . . . . . . . . Data Cores Recovered . | . . . . . . . . . . . . . . . . . . . . . . Used . | . . . . . . . . . . . . . . . . . . . . . . Hacking Detections 25 | . 1 3 . . . 7 4 . 4 . . 1 1 . 2 . . 1 . 1 . Full Trace Events 8 | . . . . . . 2 2 . 2 . . . 1 . . . . . . 1 . Feedback Events . | . . . . . . . . . . . . . . . . . . . . . . Feedback Blocked . | . . . . . . . . . . . . . . . . . . . . . . Robot Schematics Acquired . | . . . . . . . . . . . . . . . . . . . . . . Robots Built . | . . . . . . . . . . . . . . . . . . . . . . Authchips . | . . . . . . . . . . . . . . . . . . . . . . Time . | . . . . . . . . . . . . . . . . . . . . . . Total Robot Build Rating . | . . . . . . . . . . . . . . . . . . . . . . Part Schematics Acquired 6 | . . . . . . 6 . . . . . . . . . . . . . . . Parts Built 4 | . . . . . . . 2 . 2 . . . . . . . . . . . . Authchips . | . . . . . . . . . . . . . . . . . . . . . . Time 146 | . . . . . . . 73 . 73 . . . . . . . . . . . . Total Part Build Rating 12 | . . . . . . . 6 . 6 . . . . . . . . . . . . Parts Repaired . | . . . . . . . . . . . . . . . . . . . . . . Time . | . . . . . . . . . . . . . . . . . . . . . . Parts Recycled . | . . . . . . . . . . . . . . . . . . . . . . Recycled Matter . | . . . . . . . . . . . . . . . . . . . . . . Retrieved Matter . | . . . . . . . . . . . . . . . . . . . . . . Retrieved Components . | . . . . . . . . . . . . . . . . . . . . . . Parts Scanalyzed 7 | . . . . . . 7 . . . . . . . . . . . . . . . Part Schematics Acquired 6 | . . . . . . 6 . . . . . . . . . . . . . . . Parts Damaged . | . . . . . . . . . . . . . . . . . . . . . . Bothacking | -11 -10 -9 -9 -9 -8 -8 -7 -7 -7 -7 -7 -6 -6 -6 -5 -5 -5 -4 -4 -4 -4 ------------ Run | Yrd Mat Mat Min Exi Min Mat Fac Was Fac Low Low Fac Low Low Fac Upp Upp Fac Was Fac Upp Used RIF Installer . | . . . . . . . . . . . . . . . . . . . . . . Robots Hacked . | . . . . . . . . . . . . . . . . . . . . . . Non-combat . | . . . . . . . . . . . . . . . . . . . . . . Combat . | . . . . . . . . . . . . . . . . . . . . . . Robot Hacks Applied . | . . . . . . . . . . . . . . . . . . . . . . Relay Couplers Released 1 | . . . . . . . . . . . . . . . . . . 1 . . . Machine Destruction 1 | . . . . . . . . . . . . . . . . . . 1 . . . Fabnet Peak Effective % . | . . . . . . . . . . . . . . . . . . . . . . Robots Rewired 4 | . . . . . . . . . . . . . . 4 . . . . . . . Allies Hacked 1 | . . . . . . . . . . . . . . . 1 . . . . . . Hacks Repelled . | . . . . . . . . . . . . . . . . . . . . . . Allies | -11 -10 -9 -9 -9 -8 -8 -7 -7 -7 -7 -7 -6 -6 -6 -5 -5 -5 -4 -4 -4 -4 -------- Run | Yrd Mat Mat Min Exi Min Mat Fac Was Fac Low Low Fac Low Low Fac Upp Upp Fac Was Fac Upp Total Allies 26 | . . . . . . 1 . 20 . . . . . 4 . . 1 . . . . Largest Group 20 | . . . . . . 1 1 20 19 5 5 5 2 4 4 . 1 . . . . Highest-Rated Group 432 | . . . . . . 10 10 432 401 147 147 147 49 124 124 . 165 . . . . Highest-Rated Ally 165 | . . . . . . 10 10 35 35 35 35 35 25 31 31 . 165 . . . . Total Orders . | . . . . . . . . . . . . . . . . . . . . . . Ally Attacks 190 | . . . . . . . . . 129 . 10 21 2 3 25 . . . . . . Total Damage 3664 | . . . . . . . . . 2128 . 706 252 65 52 461 . . . . . . Kills 34 | . . . . . . . . . 23 . 4 1 2 1 3 . . . . . . Allies Corrupted . | . . . . . . . . . . . . . . . . . . . . . . Allies Melted . | . . . . . . . . . . . . . . . . . . . . . . Intel | -11 -10 -9 -9 -9 -8 -8 -7 -7 -7 -7 -7 -6 -6 -6 -5 -5 -5 -4 -4 -4 -4 ------- Run | Yrd Mat Mat Min Exi Min Mat Fac Was Fac Low Low Fac Low Low Fac Upp Upp Fac Was Fac Upp Robot Analysis Total . | . . . . . . . . . . . . . . . . . . . . . . Derelict Logs Recovered 7 | . . . . . . . . . . 2 1 . 2 . . 1 1 . . . . Drone Launches . | . . . . . . . . . . . . . . . . . . . . . . Drone Recoveries . | . . . . . . . . . . . . . . . . . . . . . . Exploration | -11 -10 -9 -9 -9 -8 -8 -7 -7 -7 -7 -7 -6 -6 -6 -5 -5 -5 -4 -4 -4 -4 ------------- Run | Yrd Mat Mat Min Exi Min Mat Fac Was Fac Low Low Fac Low Low Fac Upp Upp Fac Was Fac Upp Turns Passed 14270 | 63 524 579 76 682 166 1255 1449 578 493 831 79 583 1883 369 871 452 988 1182 325 816 26 Spaces Moved 8248 | 41 250 283 44 571 125 795 1029 342 281 516 50 338 1104 111 313 383 471 676 137 375 13 Core 108 | 1 4 . . . . . 1 . . . . . . . . . 8 . . 81 13 Treads 3474 | . . . . . . . . 257 281 516 50 338 1103 7 . . 44 447 137 294 . Legs 3727 | 40 246 283 44 571 125 795 1028 3 . . . . 1 104 185 . 302 . . . . Wheels 730 | . . . . . . . . . . . . . . . 127 371 3 229 . . . Hover 209 | . . . . . . . . 82 . . . . . . 1 12 114 . . . . Flight . | . . . . . . . . . . . . . . . . . . . . . . Fastest Speed 36 | 50 120 120 120 110 82 65 45 146 160 160 160 160 160 160 110 110 36 110 162 50 50 Average Speed 142 | 118 120 120 120 117 108 104 103 158 160 160 160 160 160 262 236 113 180 151 162 140 61 Slowest Speed 530 | 120 150 120 120 120 110 190 500 250 160 160 160 160 270 270 530 197 240 162 163 270 200 Overloaded Moves 167 | . . . . . 8 33 126 . . . . . . . . . . . . . . Propulsion Burnouts . | . . . . . . . . . . . . . . . . . . . . . . Robots Hopped . | . . . . . . . . . . . . . . . . . . . . . . Cave-ins Triggered . | . . . . . . . . . . . . . . . . . . . . . . Exploration Rate (%) 36 | 4 36 34 16 93 17 45 28 91 10 65 8 10 99 17 8 50 58 16 78 9 4 Regions Visited 21 Branch Regions 10 Pre-discovered Areas 3 | . . . . 1 . . . . . 1 . . 1 . . . . . . . . Known Exits Taken 4 | . . 1 . . . . . . . . . . . 1 1 1 . . . . . Unknown Exits Taken 13 | 1 1 . 1 1 1 1 . . 1 1 1 1 1 . . . 1 . . 1 . Scrap Searched 6 | . . . . . . . . . . 2 . . 2 1 . 1 . . . . . Spaces Dug 21 | . . . . . . . . . . . . . 19 1 1 . . . . . . Terrain Destroyed 327 | . . . . . . . 58 . 1 1 . 12 186 6 3 3 11 23 7 14 2 Melee . | . . . . . . . . . . . . . . . . . . . . . . Projectile 66 | . . . . . . . . . 1 1 . 1 11 5 3 3 11 7 7 14 2 AOE 260 | . . . . . . . 58 . . . . 11 175 . . . . 16 . . . Terrain Rammed . | . . . . . . . . . . . . . . . . . . . . . . Walls Destroyed . | . . . . . . . . . . . . . . . . . . . . . . Machines Disabled . | . . . . . . . . . . . . . . . . . . . . . . Actions | -11 -10 -9 -9 -9 -8 -8 -7 -7 -7 -7 -7 -6 -6 -6 -5 -5 -5 -4 -4 -4 -4 --------- Run | Yrd Mat Mat Min Exi Min Mat Fac Was Fac Low Low Fac Low Low Fac Upp Upp Fac Was Fac Upp Total 9819 | 52 367 445 51 581 143 1079 1289 382 323 523 49 372 1156 154 399 389 536 800 182 524 23 Wait 430 | . 30 70 . . 12 139 118 10 27 . . 2 5 . 5 . 5 . . 7 . Move 8229 | 40 249 282 43 570 124 794 1029 341 280 515 49 337 1103 110 312 382 470 676 136 374 13 Hop . | . . . . . . . . . . . . . . . . . . . . . . Pick Up 134 | 6 9 11 . 3 1 16 9 4 4 3 . 10 3 . 9 . 2 26 3 15 . Fast Attach 145 | 6 6 9 . 3 . 14 18 9 2 1 . 2 5 . 19 1 15 24 2 8 1 Attach 66 | . 2 4 . 1 . 10 6 . . . . 5 3 3 2 . 4 6 1 18 1 Detach 32 | . 1 1 . 1 . 3 1 4 . . . 1 2 . 5 . . 9 1 3 . Swap 12 | . 1 2 . . . 5 . . . . . 1 . . 3 . . . . . . Drop 164 | . 8 19 . 3 . 20 11 10 6 4 . 7 6 . 23 1 . 27 7 12 . Fire 339 | . 27 14 8 . 6 33 13 . 2 . . 6 29 16 21 5 21 22 32 76 8 Melee 224 | . 33 31 . . . 45 84 . . . . . . . . . 19 1 . 11 . Ram . | . . . . . . . . . . . . . . . . . . . . . . Kick 3 | . 1 2 . . . . . . . . . . . . . . . . . . . Crush 2 | . . . . . . . . . . . . 1 . . . . . 1 . . . Escape Stasis 8 | . . . . . . . . . . . . . . . . . . 8 . . . Rewire 31 | . . . . . . . . 4 2 . . . . 25 . . . . . . . Trap . | . . . . . . . . . . . . . . . . . . . . . . Miscellaneous . | . . . . . . . . . . . . . . . . . . . . . . Route ------- -11/Scrapyard -10/Materials -9/Materials (discovered 2 exits: *Min x2) -9/Mines -9/Exiles (discovered 2 exits: [*Min x2]) -8/Mines -8/Materials -7/Factory -7/Waste -7/Factory -7/Lower Caves -7/Lower Caves -6/Factory (discovered 2 exits: Fac / *Low) -6/Lower Caves -6/Lower Caves -5/Factory (discovered 3 exits: *Upp x2 / Ext) -5/Upper Caves -5/Upper Caves -4/Factory -4/Waste -4/Factory -4/Upper Caves History --------- Turn | Location | Event 2 | -11/Scrapyard | Met Revision 17 13 | -11/Scrapyard | Discovered new exit (range 14) 64 | -11/Scrapyard | Entered Materials 314 | -10/Materials | Build established: Mutant 446 | -10/Materials | Core integrity fell below 50% 466 | -10/Materials | Lost 4 parts (1p2n1w) 532 | -10/Materials | Discovered new exit (range 11) 588 | -10/Materials | Entered another Materials area 588 | -9/Materials | Evolved 2 slots: Propulsion x1, Utility x1 1138 | -9/Materials | Discovered new exit (range 7) 1138 | -9/Materials | Identified exit to Mines 1167 | -9/Materials | Entered Mines 1173 | -9/Mines | Assembled infested the area 1238 | -9/Mines | Deemed a non-threat by the Exiles lab entrance 1238 | -9/Mines | Discovered new exit (range 5) 1243 | -9/Mines | Entered Exiles 1261 | -9/Exiles | Discovered new exit (range 15) 1278 | -9/Exiles | Met 8R-AWN 1299 | -9/Exiles | Met EX-HEX 1386 | -9/Exiles | Visited The Gauntlet 1520 | -9/Exiles | Met EX-DEC 1550 | -9/Exiles | Learned location of Zion (-6) 1589 | -9/Exiles | Met EX-BIN 1740 | -9/Exiles | Aligned with FarCom system 1741 | -9/Exiles | Given EX-Vault access code 1769 | -9/Exiles | Opened EX-Vault 1775 | -9/Exiles | Found Potential Leg 1779 | -9/Exiles | Found Potential Leg 1803 | -9/Exiles | Warned to stay clear of 0b10 Research branches 1912 | -9/Exiles | Discovered new exit (range 14) 1925 | -9/Exiles | Left Exiles lab with Potential Leg 1925 | -9/Exiles | Entered Mines 2018 | -8/Mines | Discovered new exit (range 12) 2079 | -8/Mines | Build established: Scavenger-Mutant 2091 | -8/Mines | Entered Materials 2091 | -8/Materials | Evolved 2 slots: Propulsion x1, Utility x1 2337 | -8/Materials | Lost 4 parts (1p2n1w) 3214 | -8/Materials | Discovered new exit (range 10) 3346 | -8/Materials | Entered Factory 3346 | -7/Factory | Accompanied by 1 ally 3346 | -7/Factory | Evolved 2 slots: Utility x2 3574 | -7/Factory | Build established: Mutant 3982 | -7/Factory | Fabricated VSS Leg? 4069 | -7/Factory | Build established: Hacker-Mutant 4252 | -7/Factory | Garrison activated, responded to threat 4359 | -7/Factory | Lost 6 parts (3n3u) 4481 | -7/Factory | Core integrity fell below 50% 4543 | -7/Factory | Lost 5 parts (4n1u) 4589 | -7/Factory | Build established: Mutant 4687 | -7/Factory | Discovered new exit (range 11) 4795 | -7/Factory | Sucked down chute 4795 | -7/Factory | Entered Waste 4796 | -7/Waste | Joined by Warlord forces that had cleared the area 5072 | -7/Waste | Discovered new exit (range 10) 5248 | -7/Waste | Build established: Scavenger-Mutant 5373 | -7/Waste | Entered Factory 5373 | -7/Factory | Accompanied by 19 allies 5614 | -7/Factory | Fabricated VSS Leg? 5621 | -7/Factory | Lost 5 allies 5805 | -7/Factory | Discovered new exit (range 12) 5816 | -7/Factory | Lost 8 allies 5866 | -7/Factory | Entered Lower Caves 5866 | -7/Lower Caves | Accompanied by 5 allies 6256 | -7/Lower Caves | Encountered a Warlord checkpoint 6301 | -7/Lower Caves | Learned Factory emergency access door positions 6686 | -7/Lower Caves | Discovered new exit (range 4) 6697 | -7/Lower Caves | Entered another Lower Caves area 6697 | -7/Lower Caves | Accompanied by 5 allies 6741 | -7/Lower Caves | Discovered new exit (range 8) 6758 | -7/Lower Caves | Learned 4 Factory zone layouts 6776 | -7/Lower Caves | Entered Factory 6776 | -6/Factory | Accompanied by 5 allies 6776 | -6/Factory | Evolved 2 slots: Propulsion x1, Weapon x1 6777 | -6/Factory | Identified exit to Factory 7081 | -6/Factory | Build established: Scavenger-Gunner 7310 | -6/Factory | Discovered new exit (range 9) 7359 | -6/Factory | Entered Lower Caves 7359 | -6/Lower Caves | Accompanied by 2 allies 7360 | -6/Lower Caves | Encountered a Warlord checkpoint 7482 | -6/Lower Caves | Attracted the attention of an 0b10 checkpoint 7834 | -6/Lower Caves | Destroyed 7 combat bots 8124 | -6/Lower Caves | Learned Armory trap positions 8124 | -6/Lower Caves | Learned Factory emergency access door positions 8124 | -6/Lower Caves | Learned Armory emergency access door positions 8124 | -6/Lower Caves | Learned Factory terminal intel 8881 | -6/Lower Caves | Learned location of 1 exit from Research 8940 | -6/Lower Caves | Attracted the attention of an 0b10 base 9053 | -6/Lower Caves | Discovered new exit (range 9) 9242 | -6/Lower Caves | Entered another Lower Caves area 9290 | -6/Lower Caves | Attracted the attention of an 0b10 checkpoint 9326 | -6/Lower Caves | Lost 5 parts (1p2n1u1w) 9476 | -6/Lower Caves | Attacked by a delusional Derelict stockpiling Unaware 9584 | -6/Lower Caves | Discovered exit to Factory (range 9) 9611 | -6/Lower Caves | Entered Factory 9611 | -5/Factory | Accompanied by 4 allies 9611 | -5/Factory | Evolved 2 slots: Power x1, Utility x1 9612 | -5/Factory | Identified exit to Upper Caves 9612 | -5/Factory | Identified exit to Extension 9614 | -5/Factory | Loaded intel: 28 terminal locations 9832 | -5/Factory | Build established: Commander-Gunner 10247 | -5/Factory | Lost 4 allies 10401 | -5/Factory | System corruption reached 10% 10482 | -5/Factory | Entered Upper Caves 10505 | -5/Upper Caves | Identified exit to Upper Caves 10638 | -5/Upper Caves | Encountered a Warlord checkpoint 10758 | -5/Upper Caves | Build established: Scavenger-Gunner 10896 | -5/Upper Caves | Attracted the attention of an 0b10 checkpoint 10934 | -5/Upper Caves | Entered another Upper Caves area 11115 | -5/Upper Caves | Attracted the attention of an 0b10 checkpoint 11193 | -5/Upper Caves | Core integrity fell below 50% 11234 | -5/Upper Caves | Lost 13 parts (2p4n3u4w) 11258 | -5/Upper Caves | Learned Factory emergency access door positions 11519 | -5/Upper Caves | Spotted B-75 Beast 11563 | -5/Upper Caves | Build established: Scavenger-Mutant 11854 | -5/Upper Caves | Core integrity fell below 20% 11867 | -5/Upper Caves | Destroyed B-75 Beast 11880 | -5/Upper Caves | ME-RLN showed up to help 11882 | -5/Upper Caves | ME-RLN revealed a hidden path 11897 | -5/Upper Caves | Lost 4 parts (1p2n1u) 11922 | -5/Upper Caves | Entered Factory 11922 | -4/Factory | Evolved 2 slots: Propulsion x1, Utility x1 12742 | -4/Factory | Build established: Scavenger-Gunner 13104 | -4/Factory | Sucked down chute 13104 | -4/Factory | Entered Waste 13161 | -4/Waste | Spotted C-40 Crusher 13174 | -4/Waste | Destroyed C-40 Crusher 13185 | -4/Waste | Spotted C-40 Crusher 13208 | -4/Waste | Destroyed C-40 Crusher 13231 | -4/Waste | Spotted C-40 Crusher 13238 | -4/Waste | Destroyed C-40 Crusher 13246 | -4/Waste | Spotted C-40 Crusher 13256 | -4/Waste | Destroyed C-40 Crusher 13293 | -4/Waste | Spotted C-40 Crusher 13303 | -4/Waste | Spotted C-40 Crusher 13310 | -4/Waste | Destroyed C-40 Crusher 13322 | -4/Waste | Crushed by Compactor (1 part destroyed) 13322 | -4/Waste | Destroyed C-40 Crusher 13406 | -4/Waste | Discovered new exit (range 14) 13429 | -4/Waste | Entered Factory 13859 | -4/Factory | Garrison activated, responded to threat 13872 | -4/Factory | Spotted B-86 Titan 14013 | -4/Factory | Core integrity fell below 50% 14061 | -4/Factory | Lost 15 parts (3p3n6u3w) 14200 | -4/Factory | Core integrity fell below 20% 14200 | -4/Factory | Released all parts (9) 14218 | -4/Factory | Discovered new exit (range 14) 14224 | -4/Factory | Lost 10 parts (2p4n2u2w) 14245 | -4/Factory | Cargo convoy interrupted 14245 | -4/Factory | Spotted Striker 14245 | -4/Factory | Spotted Striker 14245 | -4/Factory | Entered Upper Caves 14264 | -4/Upper Caves | Attracted the attention of an 0b10 checkpoint 14271 | -4/Upper Caves | Destroyed by Y-64 Sentinel with KE Penetrator Last Messages --------------- Slug penetrates H-77 Assassin. C-30 ARC bursts open, deploying its payload. Striker unfolds itself. H-77 Assassin unfolds itself. Striker unfolds itself. H-77 Assassin unfolds itself. E-15 Imp unfolds itself. Penetrated by Slug. ALERT: Cargo convoy interrupted, initiating access lockdown. LOCATION=UNKNOWN GOAL=ESCAPE Penetrated by Slug. Adv. Heat Sink destroyed. S-27 Virus destroyed. VTOL Module fries itself beyond repair. Y-64 Sentinel: "INTERCEPTING UNREGISTERED DERELICT." Acquired VTOL Module. Penetrated by Slug. Map ----- +----------------------------------------------------+ | | | | | | | | | | | ?????????????????????????????????????????????????? | | ?????????????????????????????????????????????????? | | ?????????????????????????????????????????????????? | | ?????????????????????????????????????????????????? | | ?????????????????????????????????????????????????? | | ?????????????????????????????????????????????????? | | ?????????????????????????????????????????????????? | | ?????????????????????????????????????????????????? | | ?????????????????????????????????????????????????? | | ?????????????????????????????????????????????????? | | ?????????????????????????????????????????????????? | | ?????????????????????????????????????????????????? | | ?????????????????????????????????????????????????? | | ?????????????????????????????????????????????????? | | ?????????????????????????????????????????????????? | | ?????????????????????????????????????????????????? | | ???????????????????????####??????????????????????? | | ???????????????????????# ##?????????????????????? | | ???????????????????????# ##????????????????????? | | ?????????????????????### ##???????????????????? | | ???????????? ##??????#;;[@ #???????????????????? | | ?????????? ####% %####???????????????????? | | ?????????? gY###???######???????????? | | ????????????????# % ##### #???????????? | | ??????????? #????????????? | | ???????????###### ## #????????????? | | ????????????????#??### ### ## #????????????? | | ?????????????????????### ##?# ## ##???????????? | | ???????????????????????####??# ## #???????????? | | ?????????????????????????????# #???????????? | | ?????????????????????????????# #???????????? | | ?????????????????????????????# #???????????? | | ?????????????????????????????# #???????????? | | ?????????????????????????????# #???????????? | | ?????????????????????????????# #???????????? | | ?????????????????????????????# #???????????? | | ?????????????????????????????#########???????????? | | ?????????????????????????????????????????????????? | | ?????????????????????????????????????????????????? | | ?????????????????????????????????????????????????? | | ?????????????????????????????????????????????????? | | ?????????????????????????????????????????????????? | | ?????????????????????????????????????????????????? | | ?????????????????????????????????????????????????? | | ?????????????????????????????????????????????????? | +----------------------------------------------------+ Best States ------------- Heat Dissipation 75 Coolant Potential 180 Energy Generation 51 Energy Capacity 700 Matter Stores 353 Matter Capacity 450 Sight Range 16 Terrain Scan Density 110 EM Shielding 2 Armor Coverage 825 Resistance: TH 15 Utility Shielding 66 Melee Speed Boost 20 Evasion (%) 62 Targeting Accuracy 6 Melee Accuracy 5 Target Analysis 11 Core Analysis 6 Recoil Reduction 6 Particle Charging 25 Force Boost 30 Offensive Hacking 11 Defensive Hacking 10 Item Schematics ----------------- Sml. Storage Unit | -8/Materials | Scanalyzed Imp. Heat Sink | -8/Materials | Scanalyzed Med. Armor Plating | -8/Materials | Scanalyzed Hvy. Mace | -8/Materials | Scanalyzed VSS Leg | -8/Materials | Scanalyzed Aluminum Leg | -8/Materials | Scanalyzed Robot Schematics ------------------ None Fabricated ------------ VSS Leg | x2 | -7/Factory VSS Leg | x2 | -7/Factory Alien Tech Used ----------------- None Achievements -------------- A New Friend Below Watch This! Challenges ------------ None Game ------ Seed SwarmAssemblyLog Manual? 0 Play Time 03:14:56 Cumulative 44.0 hours Start 2024.10.20 @ 08:29:03 End 2024.10.23 @ 04:30:25 Sessions 9 Manual Loads 0 Difficulty Rogue Special Mode None Game No. 29 Rogue 29 Adventurer 0 Explorer 0 Win Type - Total 0 Types 0/0/0/0/0/0/0/0/0 Lore% 12 Gallery% 36 Achievement% 28 Wizard Run 0 Options --------- Layout 1 ASCII 0 Keyboard 1 Movement Numpad Keybinds 0 Fullscreen 1 Font 24/Smallcaps Map View 50x35 Zoom Use 0% Tactical HUD 0 Map Filters NONE Filters NONE Steam 1 RUN: 3a5aad85-8c6d-4b5a-9ea4-bcf892db3122